Cogmind - Beta 14 @@@ ROGUE MODE // 2025.03.31 @ 22:38:34 Player: McSaucyNugget Result: Destroyed by Y-54 Guardian with Gatling Laser Performance ------------- Evolutions (0) 0 Regions Visited (3) 600 Robots Destroyed (26) 130 Value Destroyed (558) 558 Prototype IDs (0) 0 Alien Tech Used (0) 0 Bonus (-10) -10 TOTAL SCORE: 1278 Bonus ------- Friendly Fire -10 Cogmind --------- Core Integrity 0/250 Matter 245/300 Energy 273/315 System Corruption 0% Temperature Hot (212) Movement Rolling (117) Ox1 Location -7/Recycling Parts ------- > --- POWER (1) -------- Neutrino Core > --- PROPULSION (2) --- Compact Wheel Subdweller Monowheel > --- UTILITY (2) ------ Large Storage Unit Seismic Detector > --- WEAPON (2) ------- Beamcaster Assault Cannon > --- INVENTORY (15) --- Aluminum Leg Aluminum Leg Aluminum Leg Carbon-fiber Leg Compact Wheel Improved Heat Sink Large Matter Pod (150) Scrap Shield Powered Armor Improved EM Pulse Cannon Beam Cannon Battle Rifle Heavy Rocket Launcher Peak State ------------ > --- POWER ------------ Neutrino Core > --- PROPULSION ------- Compact Wheel Subdweller Monowheel > --- UTILITY ---------- Large Storage Unit Seismic Detector > --- WEAPON ----------- Beamcaster Assault Cannon > --- INVENTORY -------- Aluminum Leg Aluminum Leg Aluminum Leg Carbon-fiber Leg Compact Wheel Improved Heat Sink Large Matter Pod Scrap Shield Powered Armor Improved EM Pulse Cannon Beam Cannon Battle Rifle Heavy Rocket Launcher [Rating: 22] Favorites ----------- Power Light Ion Engine Engine Light Ion Engine Power Core Neutrino Core Propulsion Subdweller Monowheel Treads Light Treads Leg Aluminum Leg Wheel Subdweller Monowheel Utility Large Storage Unit Device Seismic Detector Storage Large Storage Unit Protection Light Armor Plating Weapon Beamcaster Energy Gun Beamcaster Energy Cannon Beam Cannon Ballistic Gun Assault Rifle Ballistic Cannon Light Cannon Launcher Grenade Launcher Build | -11 -10 -10 -7 ------- Run | Yrd Mat Sub Rec Slots Evolved . | . . . . Power . | . . . . Propulsion . | . . . . Utility . | . . . . Weapon . | . . . . Parts Attached 36 | 7 10 14 5 Power 7 | 1 1 3 2 Engine 5 | 1 1 2 1 Core 2 | . . 1 1 Reactor . | . . . . Propulsion 11 | 2 3 5 1 Treads 2 | . 2 . . Leg 6 | 2 1 3 . Wheel 3 | . . 2 1 Hover . | . . . . Flight . | . . . . Utility 7 | 2 1 3 1 Device 4 | 1 . 2 1 Storage 2 | 1 1 . . Processor . | . . . . Hackware . | . . . . Protection 1 | . . 1 . Artifact . | . . . . Weapon 11 | 2 5 3 1 Energy Gun 2 | 1 . 1 . Energy Cannon 2 | . 2 . . Ballistic Gun 4 | 1 2 1 . Ballistic Cannon 2 | . . 1 1 Launcher 1 | . 1 . . Special Weapon . | . . . . Impact Weapon . | . . . . Slashing Weapon . | . . . . Piercing Weapon . | . . . . Special Melee Weapon . | . . . . Unidentified Prototypes . | . . . . Parts Lost 3 | . 3 . . Power 1 | . 1 . . Propulsion . | . . . . Utility . | . . . . Weapon 2 | . 2 . . Highest Loss Streak 3 | . 3 . . To Critical Strikes . | . . . . Average Slot Usage (%) 98 | . 96 100 98 Engine 13 | . 12 13 12 Treads 7 | . 8 8 . Leg 8 | . 19 1 . Wheel 12 | . . 18 27 Device 13 | . 14 12 11 Storage 14 | . 14 14 14 Protection 1 | . . 1 2 Energy Gun 8 | . 2 11 14 Energy Cannon 5 | . 9 2 . Ballistic Gun 10 | . 12 12 . Ballistic Cannon 3 | . . 1 14 Peak Build Rating 22 | 7 8 18 22 Average Rating 11 | 5 6 15 16 On Entrance 7 | . 7 8 16 Naked Turns . | . . . . Heaviest Build 45 | 12 30 41 45 Greatest Support 40 | 20 40 40 40 Greatest Overweight (x) 11 | . 1 1 11 Average Overweight (x) . | . . . . Largest Inventory Capacity 15 | 8 15 15 15 Average Capacity 12 | 7 10 15 15 Most Carried 15 | 4 14 15 15 Average Carried 11 | 2 8 14 14 Final Capacity 15 | 8 15 15 15 Final Carried 15 | 4 11 15 14 Class Distribution -------------------- 56% | Mutant 43% | Scavenger-Mutant Dominant Class ---------------- Mutant | -10/Materials Scavenger-Mutant | -10/Subcaves Scavenger-Mutant | -7/Recycling Resources | -11 -10 -10 -7 ----------- Run | Yrd Mat Sub Rec Matter Collected 854 | 276 196 303 79 Remotely . | . . . . Salvage Created 874 | 78 380 145 271 Parts 43 | 6 18 10 9 Haulers Intercepted . | . . . . Recyclers Shooed 1 | . . . 1 Parts Field Recycled . | . . . . Retrieved Matter . | . . . . Parts Self-Destructed 13 | . . 13 . Prevented . | . . . . Kills | -11 -10 -10 -7 ------- Run | Yrd Mat Sub Rec Combat Hostiles Destroyed 14 | . 10 4 . Guns 3 | . 1 2 . Cannons 7 | . 5 2 . AOE 3 | . 3 . . Classes Destroyed 8 | 2 4 2 . Worker 1 | . 1 . . Tunneler 2 | 1 1 . . Recycler 6 | 1 1 . 4 Turret 2 | . . 2 . Watcher 1 | . 1 . . Swarmer 4 | . 2 2 . Grunt 8 | . 8 . . Subdweller 2 | . . 2 . Best Kill Streak 6 | 2 6 2 3 Combat Bots Only 6 | . 6 2 . Max Kills in Single Turn 3 | 1 3 1 1 Gunslinging . | . . . . Exploded 3 | . 3 . . Melee . | . . . . Uniques/NPCs Destroyed . | . . . . Combat | -11 -10 -10 -7 -------- Run | Yrd Mat Sub Rec Hostile Shots Fired 123 | . 55 47 21 Missed 38 | . 8 25 5 Damage Taken 1030 | . 683 241 106 Core 259 | . 159 69 31 Absorbed by Shields . | . . . . Core Remaining (%) 100 | 100 . . . Volleys Fired 80 | 6 43 22 9 Largest 2 | 2 2 2 2 Hottest 119 | 70 80 110 119 Shots Fired 158 | 12 84 44 18 Gun 99 | 12 46 32 9 Cannon 58 | . 37 12 9 Launcher 1 | . 1 . . Special . | . . . . Kinetic 78 | 6 41 22 9 Thermal 79 | 6 42 22 9 Explosive 1 | . 1 . . Electromagnetic . | . . . . Robot Hit Streak 10 | 5 9 10 7 Robot Miss Streak 5 | 1 2 5 2 Penetration Max . | . . . . Secondary Targets . | . . . . Shots Hit Robots 100 | 9 50 30 11 Core Hits 40 | 3 22 11 4 Critical Kills 1 | . 1 . . Critical Parts Destroyed . | . . . . Critical Strikes 5 | . 3 2 . Burn 2 | . 2 . . Meltdown 1 | . 1 . . Blast 2 | . . 2 . Melee Attacks . | . . . . Impact . | . . . . Slashing . | . . . . Piercing . | . . . . Sneak Attacks . | . . . . Combat Hostiles . | . . . . Follow-up Attacks . | . . . . Damage Inflicted 1653 | 84 789 539 241 Guns 872 | 84 318 364 106 Cannons 679 | . 369 175 135 Explosions 99 | . 99 . . Melee . | . . . . Ramming 3 | . 3 . . Kinetic 685 | 34 269 247 135 Thermal 866 | 50 418 292 106 Explosive 99 | . 99 . . Electromagnetic . | . . . . Impact . | . . . . Slashing . | . . . . Piercing . | . . . . Highest Corruption . | . . . . Average Corruption . | . . . . Corruption Purged . | . . . . Corruption Blocked . | . . . . Overload Shots . | . . . . Overflow Damage 12 | . 7 . 5 Projectiles 12 | . 7 . 5 Explosions . | . . . . Melee . | . . . . Knockbacks 4 | . . 3 1 Impact . | . . . . Kinetic 4 | . . 3 1 Secondary . | . . . . Self-Inflicted Damage 24 | . 24 . . Shots 1 | . 1 . . Rammed . | . . . . Targets Rammed 2 | . 2 . . Kicked 2 | . 2 . . Crushed . | . . . . Highest Temperature 336 | 60 336 5 206 Average Temperature 79 | 27 95 3 57 Received Heat Transfer 366 | . 261 69 36 Effects 2 | . 2 . . Shutdowns 1 | . 1 . . Energy Bleed 1 | . 1 . . Siege Activations . | . . . . Robots Corrupted . | . . . . Combat Hostiles . | . . . . Parts Fried . | . . . . Impact Corruptions . | . . . . Robots Melted 1 | . 1 . . Combat Hostiles 1 | . 1 . . Parts Melted 1 | . 1 . . Heat Transferred 1924 | 148 1073 518 185 Parts Sabotaged . | . . . . Parts Stolen . | . . . . Parts Stripped . | . . . . Power Chain Reactions . | . . . . Alert | -11 -10 -10 -7 ------- Run | Yrd Mat Sub Rec Peak Influence 163 | 10 163 . 88 Initial 67 | . 6 . 67 Average 68 | 4 78 . 74 Maximum Alert Level . | . . . . Low Security (%) 100 | 100 100 . 100 Level 1 . | . . . . Level 2 . | . . . . Level 3 . | . . . . Level 4 . | . . . . Level 5 . | . . . . High Security . | . . . . Max Security . | . . . . Squads Dispatched 3 | . 3 . . Investigation 1 | . 1 . . Extermination . | . . . . Reinforcement 2 | . 2 . . Assault . | . . . . Garrison . | . . . . Intercept . | . . . . Searches Triggered . | . . . . Construction Impeded . | . . . . Haulers Reinforced . | . . . . Active Scanning Responses . | . . . . Cargo Convoy Interrupts . | . . . . Stealth | -11 -10 -10 -7 --------- Run | Yrd Mat Sub Rec Distress Signals 1 | . 1 . . Communications Jammed . | . . . . Distress Signals . | . . . . Times Spotted 38 | . 22 15 1 Peak Tracking Total 10 | . 10 8 1 Tactical Retreats 5 | . 2 3 . Traps | -11 -10 -10 -7 ------- Run | Yrd Mat Sub Rec Traps Triggered 1 | . 1 . . Indirectly . | . . . . Trap Hack Attempts . | . . . . Triggered . | . . . . Disarmed . | . . . . Reprogrammed . | . . . . Reused . | . . . . Traps Extracted . | . . . . Installed . | . . . . Triggered . | . . . . Machines | -11 -10 -10 -7 ---------- Run | Yrd Mat Sub Rec Machines Disabled 2 | . . 2 . Max in Single Turn 1 | . . 1 . Machines Repaired . | . . . . Machines Dismantled . | . . . . Machines Sabotaged . | . . . . Overloaded Fab Kills . | . . . . Hacking | -11 -10 -10 -7 --------- Run | Yrd Mat Sub Rec Machines Accessed 3 | . 3 . . Terminals 3 | . 3 . . Fabricators . | . . . . Repair Stations . | . . . . Recycling Units . | . . . . Scanalyzers . | . . . . Garrison Access . | . . . . Total Hacks 7 | . 7 . . Successful 1 | . 1 . . Failed 6 | . 6 . . Catastrophic 2 | . 2 . . Database Lockouts . | . . . . Manual 2 | . 2 . . Terminals 7 | . 7 . . Fabricators . | . . . . Repair Stations . | . . . . Recycling Units . | . . . . Scanalyzers . | . . . . Garrison Access . | . . . . Terminal Hacks 1 | . 1 . . Locate Traps 1 | . 1 . . Fabricator Hacks . | . . . . Repair Station Hacks . | . . . . Recycling Unit Hacks . | . . . . Scanalyzer . | . . . . Garrison Access Hacks . | . . . . Unauthorized Hacks . | . . . . Terminals . | . . . . Fabricators . | . . . . Repair Stations . | . . . . Recycling Units . | . . . . Scanalyzers . | . . . . Garrison Access . | . . . . Data Cores Recovered . | . . . . Used . | . . . . Hacking Detections 3 | . 3 . . Full Trace Events . | . . . . Feedback Events . | . . . . Feedback Blocked . | . . . . Robot Schematics Acquired . | . . . . Robots Built . | . . . . Authchips . | . . . . Time . | . . . . Total Robot Build Rating . | . . . . Part Schematics Acquired . | . . . . Parts Built . | . . . . Authchips . | . . . . Time . | . . . . Total Part Build Rating . | . . . . Parts Repaired . | . . . . Time . | . . . . Parts Recycled . | . . . . Recycled Matter . | . . . . Retrieved Matter . | . . . . Retrieved Components . | . . . . Parts Scanalyzed . | . . . . Part Schematics Acquired . | . . . . Parts Damaged . | . . . . Bothacking | -11 -10 -10 -7 ------------ Run | Yrd Mat Sub Rec Used RIF Installer . | . . . . Robots Hacked . | . . . . Non-combat . | . . . . Combat . | . . . . Robot Hacks Applied . | . . . . Relay Couplers Released . | . . . . Fabnet Peak Effective % . | . . . . Robots Rewired . | . . . . Allies Hacked . | . . . . Hacks Repelled . | . . . . Allies | -11 -10 -10 -7 -------- Run | Yrd Mat Sub Rec Total Allies . | . . . . Largest Group . | . . . . Highest-Rated Group . | . . . . Highest-Rated Ally . | . . . . Total Orders . | . . . . Ally Attacks . | . . . . Total Damage . | . . . . Kills . | . . . . Allies Corrupted . | . . . . Allies Melted 1 | . . 1 . Intel | -11 -10 -10 -7 ------- Run | Yrd Mat Sub Rec Robot Analysis Total . | . . . . Derelict Logs Recovered 1 | . . 1 . Drone Launches . | . . . . Drone Recoveries . | . . . . Exploration | -11 -10 -10 -7 ------------- Run | Yrd Mat Sub Rec Turns Passed 1513 | 112 584 576 241 Spaces Moved 964 | 71 326 389 178 Core 7 | 6 . . 1 Treads 163 | . 75 88 . Legs 323 | 65 251 7 . Wheels 471 | . . 294 177 Hover . | . . . . Flight . | . . . . Fastest Speed 50 | 50 120 110 105 Average Speed 122 | 114 129 123 111 Slowest Speed 600 | 120 190 240 600 Overloaded Moves . | . . . . Propulsion Burnouts . | . . . . Robots Hopped . | . . . . Cave-ins Triggered . | . . . . Exploration Rate (%) 32 | 5 60 36 27 Regions Visited 3 Branch Regions 2 Pre-discovered Areas 1 | . . 1 . Known Exits Taken . | . . . . Unknown Exits Taken 3 | 1 1 1 . Scrap Searched . | . . . . Spaces Dug . | . . . . Terrain Destroyed 4 | . 4 . . Melee . | . . . . Projectile . | . . . . AOE 4 | . 4 . . Terrain Rammed . | . . . . Walls Destroyed . | . . . . Machines Disabled . | . . . . Actions | -11 -10 -10 -7 --------- Run | Yrd Mat Sub Rec Total 1140 | 87 406 442 205 Wait 11 | . 9 1 1 Move 961 | 70 325 388 178 Hop . | . . . . Pick Up 28 | 4 12 8 4 Fast Attach 13 | 7 . 3 3 Attach 7 | . 4 2 1 Detach 1 | . 1 . . Swap 16 | . 6 9 1 Drop 21 | . 4 9 8 Fire 80 | 6 43 22 9 Melee . | . . . . Ram . | . . . . Kick 2 | . 2 . . Crush . | . . . . Escape Stasis . | . . . . Rewire . | . . . . Trap . | . . . . Miscellaneous . | . . . . Route ------- -11/Scrapyard -10/Materials (discovered 2 exits: [*Mat] / [*Sub]) -10/Subcaves -7/Recycling History --------- Turn | Location | Event 5 | -11/Scrapyard | Discovered new exit (range 16) 113 | -11/Scrapyard | Entered Materials 296 | -10/Materials | Discovered new exit (range 4) 304 | -10/Materials | Build established: Mutant 588 | -10/Materials | Core integrity fell below 50% 601 | -10/Materials | Discovered new exit (range 6) 632 | -10/Materials | Lost 3 parts (1p2w) 697 | -10/Materials | Entered Subcaves 724 | -10/Subcaves | Learned location of Recycling (-7) 808 | -10/Subcaves | Ambushed by swarm of Subdwellers 819 | -10/Subcaves | Core integrity fell below 20% 1108 | -10/Subcaves | Build established: Scavenger-Mutant 1195 | -10/Subcaves | A swath of the cavern ceiling suddenly collapsed 1254 | -10/Subcaves | Discovered new exit (range 10) 1273 | -10/Subcaves | Entered Recycling 1274 | -7/Recycling | Met a Zionite searching for Scraptown 1374 | -7/Recycling | Found Powered Armor 1514 | -7/Recycling | Destroyed by Y-54 Guardian with Gatling Laser Last Messages --------------- 01434_ R-06 Scavenger inserts Lgt. Ion Engine into recycling unit. 01437_ R-06 Scavenger inserts Lgt. Armor Plating into recycling unit. 01440_ R-06 Scavenger inserts Com. Wheel into recycling unit. 01444_ Dropped Aluminum Leg. 01444_ Acquired Hvy. Rocket Launcher. 01461_ Dropped Lgt. Cannon. 01466_ Acquired Assault Cannon. 01469_ Dropped Beam Cannon. 01470_ Acquired Imp. EM Pulse Cannon. 01482_ Sub. Power Source shoots sparks and powers down. 01486_ Dropped Broken Sub. Power Source. 01488_ Acquired Broken Sub. Power Source. 01489_ Dropped Broken Sub. Power Source. 01490_ Destroyed Lgt. Ion Engine. 01490_ R-06 Scavenger knocked back. 01493_ R-06 Scavenger destroyed. 01505_ R-06 Scavenger collects Sml. Storage Unit. 01507_ Y-54 Guardian springs to life. 01508_ R-06 Scavenger collects Tractor Beam. 01512_ R-06 Scavenger collects Aluminum Leg. Map ----- +----------------------------------------------------+ | ?#** #???????### ################??????????? | | ?### #???????#"" #?????????????????????????? | | ???# #???????#"Y #?????????????????????????? | | ???# #???????#"" #?????????????????????????? | | ???# #???????### #?????????????????????????? | | ???# #?????????# ####??????????????????????? | | ???# +?????????# +??????????????????????? | | ???# ####?????????# #######??????????????????????? | | ???# #????????????# #????????????????????????????? | | ???# #????????????# #????????????????????????????? | | ???# #????????????# #????????????????????????????? | | ?### #????????????# #????????????????????????????? | | ?# #????????????# #????????????????????????????? | | ?# #????????????# #????????????????????????????? | | ?# #?############ ###??????????????????????????? | | ?# #?# #]] #??????????????????????????? | | ?# #?# #] #??????????????????????????? | | ?# #?# [ #] #??????????????????????????? | | ?# #?#* ### #??????????????????????????? | | ?# #?# % #?# #??????????????????????????? | | ?# #?# ! #?# #??????????????????????????? | | ?# #?#] #?# #??????????????????????????? | | ?# #?# / #?# #??????????????????????????? | | ?# #?# !] ] #?# #???##?????????????????????? | | ?# #?##+###+##### ####Y###???????????????????? | | ?# #??# !!%r %@ %#???????????????????? | | ?# #??# % = #???????????????????? | | ?# #??# #???????????????????? | | ?# #??###"Y"### ##########???????????????????? | | ?# #????#"""#?# * #????????????????????????????? | | ?# #????#####?# #????????????????????????????? | | ## ##????????## ##???????????????????????????? | | # ########## #???????????????????????????? | | # #???????????????????????????? | | # #???????????????????????????? | | # #???????????????????????????? | | # ########## #???????????????????????????? | | ## ##????????#######???????????????????????????? | | ?# #???????????????????????????????????????????? | | ?# #???????????????????????????????????????????? | | ?# #???????????????????????????????????????????? | | ?# #???????????????????????????????????????????? | | ?# #???????????????????????????????????????????? | | ?# #???????????????????????????????????????????? | | ?# #???????????????????????????????????????????? | | ?# #???????????????????????????????????????????? | | ?# #???????????????????????????????????????????? | | ?# #???????????????????????????????????????????? | | ?# #???????????????????????????????????????????? | | ?# #???????????????????????????????????????????? | +----------------------------------------------------+ Best States ------------- Heat Dissipation 39 Energy Generation 19 Energy Capacity 315 Matter Stores 300 Matter Capacity 300 Sight Range 16 Terrain Scan Density 10 Armor Coverage 150 Evasion (%) 55 Recoil Reduction 2 Item Schematics ----------------- None Robot Schematics ------------------ None Fabricated ------------ Nothing Alien Tech Used ----------------- None Achievements -------------- None Challenges ------------ None Game ------ Seed ImpulseMagneticDisintegrator Manual? 0 Play Time 00:18:57 Cumulative 8.8 hours Start 2025.03.31 @ 22:17:57 End 2025.03.31 @ 22:38:34 Sessions 1 Manual Loads 0 Difficulty Rogue Special Mode None Game No. 10 Rogue 10 Adventurer 0 Explorer 0 Win Type - Total 1 Types 1/0/0/0/0/0/0/0/0 Lore% 8 Gallery% 16 Achievement% 22 Wizard Run 0 Options --------- Layout 0 ASCII 0 Keyboard 1 Movement Vi Keybinds 0 Fullscreen 2 Font 18/SmallcapsGlow Map View 76x50 Zoom Use 0% Tactical HUD 1 Map Filters NONE Filters NONE Steam 1 RUN: 55585a93-daf5-4694-b073-2d03bb828b88